Cogmind - Beta 13 @@@ ROGUE MODE // 2024.04.16 @ 21:28:29 Player: Briefgarde Result: Destroyed by S-27 Virus with Autogun Performance ------------- Evolutions (4) 2000 Regions Visited (11) 2200 Robots Destroyed (63) 315 Value Destroyed (1565) 1565 Prototype IDs (3) 60 Alien Tech Used (0) 0 Bonus (9) 9 TOTAL SCORE: 6149 Bonus ------- High Alert Combat Kills 120 Follower Combat Kills 7 Friendly Fire -118 Cogmind --------- Core Integrity 0/850 Matter 300/300 Energy 34/100 System Corruption 4% Temperature Cool (61) Movement Hovering (60) Location -6/Lower Caves Parts ------- > --- POWER (2) -------- (None) > --- PROPULSION (3) --- Gravmag Array > --- UTILITY (8) ------ Advanced Heat Sink Improved Terrain Scanner Hacking Suite Hacking Suite System Shield > --- WEAPON (2) ------- Heavy Plasma Cannon Heavy Flail > --- INVENTORY (5) ---- Fusion Compressor Compact Wheel Transmission Jammer Advanced Assault Cannon Peak State ------------ > --- POWER ------------ Light Fission Core > --- PROPULSION ------- Gravmag System Gravmag Array > --- UTILITY ---------- Improved Thermal Generator Advanced Heat Sink Improved Signal Interpreter Improved Reaction Control System Thermal Shield Hacking Suite Hacking Suite > --- WEAPON ----------- Heavy Plasma Cannon High-powered Shotgun > --- INVENTORY -------- Fusion Compressor Gravmag Array Transmission Jammer Heavy Flail [Rating: 58] Favorites ----------- Power Heavy Ion Engine Engine Heavy Ion Engine Power Core Fusion Compressor Propulsion Titanium Leg Treads Light Treads Leg Titanium Leg Wheel Wheel Hover Unit Airjet Utility Hacking Suite Device Heat Sink Storage Large Storage Unit Processor Improved Signal Interpreter Hackware Hacking Suite Protection Light Armor Plating Weapon Improved Assault Rifle Energy Gun Small Laser Energy Cannon Heavy Plasma Cannon Ballistic Gun Improved Assault Rifle Ballistic Cannon Gauss Cannon Impact Weapon Heavy Flail Build | -11 -10 -10 -9 -9 -9 -8 -8 -7 -6 -6 -6 ------- Run | Yrd Mat Min Mat Min Exi Min Mat Fac Fac Low Low Slots Evolved 8 | . . . 2 . . . 2 2 2 . . Power 1 | . . . . . . . . . 1 . . Propulsion 1 | . . . 1 . . . . . . . . Utility 6 | . . . 1 . . . 2 2 1 . . Weapon . | . . . . . . . . . . . . Parts Attached 86 | 6 8 9 12 . . 1 5 13 25 7 . Power 10 | 1 1 . 3 . . . . 1 4 . . Engine 6 | 1 1 . 3 . . . . 1 . . . Core 4 | . . . . . . . . . 4 . . Reactor . | . . . . . . . . . . . . Propulsion 26 | 2 5 6 3 . . . . 3 5 2 . Treads 5 | 1 3 . . . . . . . . 1 . Leg 9 | . . 6 3 . . . . . . . . Wheel 3 | 1 2 . . . . . . . . . . Hover 9 | . . . . . . . . 3 5 1 . Flight . | . . . . . . . . . . . . Utility 29 | 1 2 1 3 . . . 3 6 9 4 . Device 13 | . 1 . 1 . . . 2 1 6 2 . Storage 3 | 1 1 . 1 . . . . . . . . Processor 3 | . . . . . . . 1 1 1 . . Hackware 8 | . . . . . . . . 4 2 2 . Protection 2 | . . 1 1 . . . . . . . . Artifact . | . . . . . . . . . . . . Weapon 21 | 2 . 2 3 . . 1 2 3 7 1 . Energy Gun 2 | . . 1 . . . . 1 . . . . Energy Cannon 1 | . . . . . . . . . 1 . . Ballistic Gun 14 | 2 . 1 3 . . 1 1 1 5 . . Ballistic Cannon 1 | . . . . . . . . 1 . . . Launcher . | . . . . . . . . . . . . Special Weapon . | . . . . . . . . . . . . Impact Weapon 3 | . . . . . . . . 1 1 1 . Slashing Weapon . | . . . . . . . . . . . . Piercing Weapon . | . . . . . . . . . . . . Special Melee Weapon . | . . . . . . . . . . . . Unidentified Prototypes 3 | . . . 2 . . . 1 . . . . Parts Lost 19 | . . 1 . . . . . 6 7 2 3 Power 2 | . . . . . . . . . 2 . . Propulsion 6 | . . 1 . . . . . 2 1 1 1 Utility 9 | . . . . . . . . 3 3 1 2 Weapon 2 | . . . . . . . . 1 1 . . Highest Loss Streak 5 | . . 1 . . . . . 5 5 1 3 To Critical Strikes . | . . . . . . . . . . . . Average Slot Usage (%) 81 | . 85 99 99 100 100 100 88 78 51 62 70 Engine 7 | . 14 14 11 11 11 11 9 5 . . . Core 1 | . . . . . . . . . 9 . . Treads 3 | . 21 . . . . . . . . 4 4 Leg 12 | . . 25 33 33 33 33 27 . . . . Hover 5 | . . . . . . . . 17 10 6 6 Device 7 | . . 3 10 11 11 11 7 5 10 8 13 Storage 6 | . 14 14 11 11 11 11 9 . . . . Processor 3 | . . . . . . . 9 11 4 6 5 Hackware 7 | . . . . . . . . 23 5 24 25 Protection 4 | . . 10 11 11 11 11 9 . . . . Energy Gun 1 | . . 12 4 . . . . . . . . Ballistic Gun 13 | . 28 15 17 22 22 22 18 5 6 . . Naked Turns 371 | . . . . . . . . 230 141 . . Heaviest Build 41 | 11 29 30 38 38 38 39 41 41 33 23 15 Greatest Support 49 | 20 40 30 49 49 49 49 49 49 29 20 20 Greatest Overweight (x) 9 | . 2 9 . . . . . 2 4 1 . Average Overweight (x) . | . 1 . . . . . . . . . . Largest Inventory Capacity 15 | 8 15 15 15 15 15 15 15 15 5 5 5 Average Capacity 10 | 7 14 15 15 15 15 15 15 5 5 5 5 Most Carried 15 | 6 12 15 15 15 15 15 15 15 5 5 4 Average Carried 9 | 3 8 12 14 15 15 15 14 5 3 4 4 Final Capacity 15 | 8 15 15 15 15 15 15 15 5 5 5 5 Final Carried 15 | 6 12 15 15 15 15 15 15 5 5 4 4 Class Distribution -------------------- 72% | Mutant 27% | Hacker-Mutant Dominant Class ---------------- Mutant | -10/Materials Mutant | -10/Mines Mutant | -9/Materials Mutant | -9/Mines Mutant | -9/Exiles Mutant | -8/Mines Mutant | -8/Materials Hacker-Mutant | -7/Factory Mutant | -6/Factory Hacker-Mutant | -6/Lower Caves Hacker-Mutant | -6/Lower Caves Resources | -11 -10 -10 -9 -9 -9 -8 -8 -7 -6 -6 -6 ----------- Run | Yrd Mat Min Mat Min Exi Min Mat Fac Fac Low Low Matter Collected 2050 | 148 344 139 147 22 . 69 110 . 851 220 . Remotely . | . . . . . . . . . . . . Salvage Created 1897 | . 305 150 155 36 . 106 110 . 915 120 . Parts 109 | . 25 6 8 3 . 13 8 . 45 1 . Haulers Intercepted 3 | . . . 2 . . . 1 . . . . Recyclers Shooed 6 | . 4 . . . . . . . 2 . . Parts Field Recycled . | . . . . . . . . . . . . Retrieved Matter . | . . . . . . . . . . . . Parts Self-Destructed 1 | . . . . . . . . . . 1 . Prevented . | . . . . . . . . . . . . Kills | -11 -10 -10 -9 -9 -9 -8 -8 -7 -6 -6 -6 ------- Run | Yrd Mat Min Mat Min Exi Min Mat Fac Fac Low Low Combat Hostiles Destroyed 44 | . 9 3 . 2 . 5 1 . 22 2 . Melee 1 | . . . . . . . . . 1 . . Guns 35 | . 9 3 . 2 . 5 1 . 15 . . Cannons 5 | . . . . . . . . . 3 2 . Classes Destroyed 14 | . 4 1 1 . . 1 1 . 6 . . Worker 8 | . . 1 . . . 1 . . 6 . . Builder 2 | . . . . . . . . . 2 . . Hauler 3 | . . . 2 . . . 1 . . . . Recycler 1 | . 1 . . . . . . . . . . Mechanic 1 | . . . . . . . . . 1 . . Operator 2 | . 2 . . . . . . . . . . Watcher 1 | . . . . . . . . . 1 . . Swarmer 21 | . 6 . . 2 . 4 . . 7 2 . Cutter 3 | . . . . . . . . . 3 . . Grunt 12 | . 3 3 . . . . . . 6 . . Sentry 1 | . . . . . . . 1 . . . . Specialist 2 | . . . . . . . . . 2 . . Hunter 1 | . . . . . . 1 . . . . . Programmer 4 | . . . . . . . . . 4 . . Packrat 1 | . . . . . . . . . . 1 . Thug 1 | . . . 1 . . . . . . . . Best Kill Streak 7 | . 3 3 1 2 . 5 1 . 7 2 . Combat Bots Only 6 | . 3 3 . 2 . 4 1 . 6 2 . Max Kills in Single Turn 2 | . 1 1 1 1 . 2 1 . 2 1 . Gunslinging . | . . . . . . . . . . . . Exploded . | . . . . . . . . . . . . Melee 1 | . . . . . . . . . 1 . . Uniques/NPCs Destroyed . | . . . . . . . . . . . . Combat | -11 -10 -10 -9 -9 -9 -8 -8 -7 -6 -6 -6 -------- Run | Yrd Mat Min Mat Min Exi Min Mat Fac Fac Low Low Hostile Shots Fired 408 | . 48 25 . 3 . 60 4 67 155 23 23 Missed 107 | . 9 7 . 2 . 14 1 22 37 4 11 Damage Taken 4913 | . 434 284 21 10 . 588 45 1001 2011 334 185 Core 1390 | . 71 22 . . . 55 14 373 705 95 55 Absorbed by Shields . | . . . . . . . . . . . . Ignored by Resistances 176 | . . . . . . . . . 176 . . Core Remaining (%) 78 | 100 . 62 . . . 86 97 46 . . . Volleys Fired 191 | . 38 13 6 3 . 24 4 23 70 5 5 Largest 2 | . 2 2 2 2 . 2 2 1 2 1 1 Hottest 115 | . 40 60 60 46 . 46 51 48 115 90 90 Shots Fired 331 | . 76 26 12 6 . 48 8 23 122 5 5 Gun 279 | . 76 26 12 6 . 48 8 . 103 . . Cannon 52 | . . . . . . . . 23 19 5 5 Launcher . | . . . . . . . . . . . . Special . | . . . . . . . . . . . . Kinetic 300 | . 76 25 11 6 . 48 8 23 103 . . Thermal 31 | . . 1 1 . . . . . 19 5 5 Explosive . | . . . . . . . . . . . . Electromagnetic . | . . . . . . . . . . . . Robot Hit Streak 10 | . 6 8 9 3 . 10 8 3 9 7 1 Robot Miss Streak 5 | . 3 1 1 3 . 2 1 1 5 1 2 Penetration Max 1 | . . . . . . . 1 1 . . . Secondary Targets 5 | . 2 . . . . 2 . . 1 . . Max Gunslinging Chain 1 | . 1 . . . . 1 . . 1 . . Shots Hit Robots 224 | . 46 18 4 2 . 34 6 4 104 5 1 Core Hits 106 | . 21 10 3 2 . 8 3 . 57 2 . Critical Kills 1 | . . . . . . . . . 1 . . Critical Parts Destroyed 7 | . 2 . . . . . . . 4 1 . Critical Strikes 8 | . 2 . . . . . . . 5 1 . Destroy 2 | . 2 . . . . . . . . . . Smash 6 | . . . . . . . . . 5 1 . Melee Attacks 34 | . . . . . . . . 10 23 1 . Impact 34 | . . . . . . . . 10 23 1 . Slashing . | . . . . . . . . . . . . Piercing . | . . . . . . . . . . . . Sneak Attacks 7 | . . . . . . . . . 6 1 . Combat Hostiles . | . . . . . . . . . . . . Follow-up Attacks . | . . . . . . . . . . . . Damage Inflicted 4836 | . 504 220 82 30 . 415 114 166 3065 207 33 Guns 3094 | . 504 220 82 30 . 415 114 . 1729 . . Cannons 676 | . . . . . . . . 135 383 125 33 Explosions 69 | . . . . . . . . . 69 . . Melee 978 | . . . . . . . . 31 865 82 . Ramming 19 | . . . . . . . . . 19 . . Kinetic 3218 | . 504 209 82 30 . 415 114 135 1729 . . Thermal 552 | . . 11 . . . . . . 383 125 33 Explosive 69 | . . . . . . . . . 69 . . Electromagnetic . | . . . . . . . . . . . . Impact 978 | . . . . . . . . 31 865 82 . Slashing . | . . . . . . . . . . . . Piercing . | . . . . . . . . . . . . Highest Corruption 19 | . . . . . . . . 19 4 4 4 Average Corruption 4 | . . . . . . . . 12 2 4 4 Corruption Purged . | . . . . . . . . . . . . Corruption Blocked . | . . . . . . . . . . . . Effects 36 | . . . . . . . . 10 14 9 3 Message Errors 9 | . . . . . . . . 2 4 2 1 Matter Fused 8 | . . . . . . . . 2 4 1 1 Heat Flow Errors 3 | . . . . . . . . 1 . 2 . Energy Discharges 6 | . . . . . . . . 1 3 1 1 Data Loss (minor) 1 | . . . . . . . . . 1 . . Data Loss (major) 3 | . . . . . . . . 2 1 . . Misfires 1 | . . . . . . . . . 1 . . Alerts 3 | . . . . . . . . . . 3 . Misdirections 2 | . . . . . . . . 2 . . . Overload Shots . | . . . . . . . . . . . . Overflow Damage 639 | . . . . . . . . 21 530 88 . Projectiles 11 | . . . . . . . . . 5 6 . Explosions . | . . . . . . . . . . . . Melee 628 | . . . . . . . . 21 525 82 . Knockbacks 4 | . . . . . . . . 1 3 . . Impact 3 | . . . . . . . . . 3 . . Kinetic 1 | . . . . . . . . 1 . . . Secondary . | . . . . . . . . . . . . Self-Inflicted Damage 159 | . . . . . . . . . 159 . . Shots 2 | . . . . . . . . . 2 . . Rammed 6 | . . . . . . . . . 6 . . Targets Rammed 6 | . . . . . . . . . 6 . . Kicked . | . . . . . . . . . . . . Crushed . | . . . . . . . . . . . . Highest Temperature 237 | . 12 26 . . . . 4 181 79 237 61 Average Temperature 37 | . 7 13 . . . . 4 36 40 83 27 Received Heat Transfer 1020 | . 60 138 9 . . . 18 171 498 126 . Effects 1 | . . . . . . . . . . 1 . Energy Bleed 1 | . . . . . . . . . . 1 . Siege Activations . | . . . . . . . . . . . . Robots Corrupted . | . . . . . . . . . . . . Combat Hostiles . | . . . . . . . . . . . . Parts Fried 5 | . . . . . . . . . 5 . . Impact Corruptions 20 | . . . . . . . . 1 18 1 . Robots Melted . | . . . . . . . . . . . . Combat Hostiles . | . . . . . . . . . . . . Parts Melted 3 | . . . . . . . . . 1 2 . Heat Transferred 875 | . . 25 . . . . . . 600 200 50 Parts Sabotaged . | . . . . . . . . . . . . Parts Stolen . | . . . . . . . . . . . . Parts Stripped . | . . . . . . . . . . . . Power Chain Reactions . | . . . . . . . . . . . . Alert | -11 -10 -10 -9 -9 -9 -8 -8 -7 -6 -6 -6 ------- Run | Yrd Mat Min Mat Min Exi Min Mat Fac Fac Low Low Peak Influence 585 | . 215 92 65 86 . 125 54 360 585 . . Initial 176 | . . 7 . . . . . 24 176 . . Average 123 | . 108 52 17 48 . 47 25 60 346 . . Maximum Alert Level 2 | . 1 . . . . . . 1 2 . . Low Security (%) 74 | 100 87 100 100 100 . 100 100 92 3 . . Level 1 18 | . 12 . . . . . . 7 66 . . Level 2 6 | . . . . . . . . . 30 . . Level 3 . | . . . . . . . . . . . . Level 4 . | . . . . . . . . . . . . Level 5 . | . . . . . . . . . . . . High Security . | . . . . . . . . . . . . Max Security . | . . . . . . . . . . . . Squads Dispatched 22 | . 3 1 1 . . . . 5 12 . . Investigation 3 | . 1 1 . . . . . 1 . . . Extermination 3 | . . . . . . . . 1 2 . . Reinforcement 11 | . 2 . 1 . . . . 3 5 . . Assault 1 | . . . . . . . . . 1 . . Garrison 4 | . . . . . . . . . 4 . . Intercept . | . . . . . . . . . . . . Searches Triggered . | . . . . . . . . . . . . Construction Impeded 1 | . . . . . . . . 1 . . . Haulers Reinforced 1 | . . . . . . . . . 1 . . Active Scanning Responses . | . . . . . . . . . . . . Cargo Convoy Interrupts 1 | . . . . . . . . . 1 . . Stealth | -11 -10 -10 -9 -9 -9 -8 -8 -7 -6 -6 -6 --------- Run | Yrd Mat Min Mat Min Exi Min Mat Fac Fac Low Low Distress Signals 7 | . 2 . 1 . . . . 1 3 . . Communications Jammed . | . . . . . . . . . . . . Distress Signals . | . . . . . . . . . . . . Times Spotted 140 | . 25 4 11 4 . 5 5 32 40 7 7 Peak Tracking Total 10 | . 4 2 4 3 . 4 4 10 6 4 7 Tactical Retreats 14 | . 1 1 . 1 . . . 6 2 3 . Traps | -11 -10 -10 -9 -9 -9 -8 -8 -7 -6 -6 -6 ------- Run | Yrd Mat Min Mat Min Exi Min Mat Fac Fac Low Low Traps Triggered 8 | . 4 1 . . . . . 2 1 . . Indirectly . | . . . . . . . . . . . . Trap Hack Attempts . | . . . . . . . . . . . . Triggered . | . . . . . . . . . . . . Disarmed . | . . . . . . . . . . . . Reprogrammed . | . . . . . . . . . . . . Reused . | . . . . . . . . . . . . Traps Extracted . | . . . . . . . . . . . . Installed . | . . . . . . . . . . . . Triggered 2 | . . . . 1 . . . . 1 . . Machines | -11 -10 -10 -9 -9 -9 -8 -8 -7 -6 -6 -6 ---------- Run | Yrd Mat Min Mat Min Exi Min Mat Fac Fac Low Low Machines Disabled 2 | . . . . . . . . . 2 . . Max in Single Turn 1 | . . . . . . . . . 1 . . Garrison Access 1 | . . . . . . . . . 1 . . Machines Repaired . | . . . . . . . . . . . . Machines Dismantled . | . . . . . . . . . . . . Machines Sabotaged . | . . . . . . . . . . . . Overloaded Fab Kills . | . . . . . . . . . . . . Hacking | -11 -10 -10 -9 -9 -9 -8 -8 -7 -6 -6 -6 --------- Run | Yrd Mat Min Mat Min Exi Min Mat Fac Fac Low Low Machines Accessed 15 | . 1 2 2 . 4 . . 4 2 . . Terminals 8 | . 1 . 2 . . . . 3 2 . . Fabricators . | . . . . . . . . . . . . Repair Stations 1 | . . . . . . . . 1 . . . Recycling Units . | . . . . . . . . . . . . Scanalyzers . | . . . . . . . . . . . . Garrison Access . | . . . . . . . . . . . . Total Hacks 37 | . 2 2 5 . 4 . . 19 5 . . Successful 18 | . . 2 3 . 4 . . 7 2 . . Failed 19 | . 2 . 2 . . . . 12 3 . . Catastrophic 5 | . 1 . . . . . . 4 . . . Database Lockouts . | . . . . . . . . . . . . Manual 29 | . 2 . 5 . . . . 17 5 . . Terminals 29 | . 2 . 5 . . . . 17 5 . . Fabricators . | . . . . . . . . . . . . Repair Stations 2 | . . . . . . . . 2 . . . Recycling Units . | . . . . . . . . . . . . Scanalyzers . | . . . . . . . . . . . . Garrison Access . | . . . . . . . . . . . . Terminal Hacks 17 | . . 2 3 . 4 . . 6 2 . . Record 4 | . . . . . 4 . . . . . . Part Schematic 3 | . . . . . . . . 3 . . . Robot Analysis 3 | . . . 2 . . . . 1 . . . Open Door 2 | . . 2 . . . . . . . . . Fabricator Index 2 | . . . . . . . . 1 1 . . Locate Traps 2 | . . . 1 . . . . . 1 . . Hauler Manifests 1 | . . . . . . . . 1 . . . Fabricator Hacks . | . . . . . . . . . . . . Repair Station Hacks . | . . . . . . . . . . . . Recycling Unit Hacks . | . . . . . . . . . . . . Scanalyzer . | . . . . . . . . . . . . Garrison Access Hacks . | . . . . . . . . . . . . Unauthorized Hacks 1 | . . . . . . . . 1 . . . Terminals 1 | . . . . . . . . 1 . . . Operators 1 | . . . . . . . . 1 . . . Fabricators . | . . . . . . . . . . . . Repair Stations . | . . . . . . . . . . . . Recycling Units . | . . . . . . . . . . . . Scanalyzers . | . . . . . . . . . . . . Garrison Access . | . . . . . . . . . . . . Data Cores Recovered 1 | . 1 . . . . . . . . . . Used . | . . . . . . . . . . . . Hacking Detections 8 | . 1 . 2 . . . . 3 2 . . Full Trace Events 1 | . . . . . . . . 1 . . . Feedback Events . | . . . . . . . . . . . . Feedback Blocked . | . . . . . . . . . . . . Robot Schematics Acquired . | . . . . . . . . . . . . Robots Built . | . . . . . . . . . . . . Authchips . | . . . . . . . . . . . . Time . | . . . . . . . . . . . . Total Robot Build Rating . | . . . . . . . . . . . . Part Schematics Acquired 3 | . . . . . . . . 3 . . . Parts Built . | . . . . . . . . . . . . Authchips . | . . . . . . . . . . . . Time . | . . . . . . . . . . . . Total Part Build Rating . | . . . . . . . . . . . . Parts Repaired . | . . . . . . . . . . . . Time . | . . . . . . . . . . . . Parts Recycled . | . . . . . . . . . . . . Recycled Matter . | . . . . . . . . . . . . Retrieved Matter . | . . . . . . . . . . . . Retrieved Components . | . . . . . . . . . . . . Parts Scanalyzed . | . . . . . . . . . . . . Part Schematics Acquired . | . . . . . . . . . . . . Parts Damaged . | . . . . . . . . . . . . Bothacking | -11 -10 -10 -9 -9 -9 -8 -8 -7 -6 -6 -6 ------------ Run | Yrd Mat Min Mat Min Exi Min Mat Fac Fac Low Low Used RIF Installer . | . . . . . . . . . . . . Robots Hacked . | . . . . . . . . . . . . Non-combat . | . . . . . . . . . . . . Combat . | . . . . . . . . . . . . Robot Hacks Applied . | . . . . . . . . . . . . Relay Couplers Released . | . . . . . . . . . . . . Fabnet Peak Effective % . | . . . . . . . . . . . . Robots Rewired . | . . . . . . . . . . . . Allies Hacked . | . . . . . . . . . . . . Hacks Repelled . | . . . . . . . . . . . . Allies | -11 -10 -10 -9 -9 -9 -8 -8 -7 -6 -6 -6 -------- Run | Yrd Mat Min Mat Min Exi Min Mat Fac Fac Low Low Total Allies 5 | . . 3 . 2 . . . . . . . Largest Group 3 | . . 3 . 2 . . . . . . . Highest-Rated Group 56 | . . 40 . 56 . . . . . . . Highest-Rated Ally 31 | . . 16 . 31 . . . . . . . Total Orders . | . . . . . . . . . . . . Ally Attacks 9 | . . 6 . 3 . . . . . . . Total Damage 93 | . . 29 . 64 . . . . . . . Kills 2 | . . 1 . 1 . . . . . . . Allies Corrupted . | . . . . . . . . . . . . Allies Melted . | . . . . . . . . . . . . Intel | -11 -10 -10 -9 -9 -9 -8 -8 -7 -6 -6 -6 ------- Run | Yrd Mat Min Mat Min Exi Min Mat Fac Fac Low Low Robot Analysis Total 3 | . . . 2 . . . . 1 . . . Derelict Logs Recovered 3 | . . 1 . 1 . . . . . 1 . Drone Launches . | . . . . . . . . . . . . Drone Recoveries . | . . . . . . . . . . . . Exploration | -11 -10 -10 -9 -9 -9 -8 -8 -7 -6 -6 -6 ------------- Run | Yrd Mat Min Mat Min Exi Min Mat Fac Fac Low Low Turns Passed 6700 | 76 827 655 488 440 574 432 186 1181 1252 428 161 Spaces Moved 5555 | 42 480 380 334 313 456 274 126 1100 1434 420 196 Core 740 | 4 . 1 . . . . . 442 293 . . Treads 273 | 37 233 3 . . . . . . . . . Legs 1891 | . . 376 334 313 456 274 126 12 . . . Wheels 248 | 1 247 . . . . . . . . . . Hover 2403 | . . . . . . . . 646 1141 420 196 Flight . | . . . . . . . . . . . . Fastest Speed 50 | 50 95 120 120 126 126 126 126 50 50 60 60 Average Speed 92 | 147 138 151 121 126 126 126 126 52 59 87 76 Slowest Speed 500 | 160 240 500 126 126 126 126 126 180 250 130 80 Overloaded Moves . | . . . . . . . . . . . . Propulsion Burnouts . | . . . . . . . . . . . . Robots Hopped . | . . . . . . . . . . . . Cave-ins Triggered 1 | . . . . . . . . 1 . . . Exploration Rate (%) 47 | 5 82 61 37 71 89 68 15 27 24 60 30 Regions Visited 11 Branch Regions 6 Pre-discovered Areas 2 | . . 1 . . . . . . . 1 . Known Exits Taken 2 | . . . . . . . . . 1 1 . Unknown Exits Taken 9 | 1 1 1 1 1 1 1 1 1 . . . Scrap Searched 7 | . . 1 . 2 . . . . . 4 . Spaces Dug 24 | . . . . . . . . 17 6 . 1 Terrain Destroyed 47 | . . . . . . . . 18 24 1 4 Melee 9 | . . . . . . . . 5 4 . . Projectile 25 | . . . . . . . . 13 7 1 4 AOE 13 | . . . . . . . . . 13 . . Terrain Rammed . | . . . . . . . . . . . . Walls Destroyed . | . . . . . . . . . . . . Machines Disabled . | . . . . . . . . . . . . Actions | -11 -10 -10 -9 -9 -9 -8 -8 -7 -6 -6 -6 --------- Run | Yrd Mat Min Mat Min Exi Min Mat Fac Fac Low Low Total 6740 | 53 570 435 407 352 455 313 145 1658 1679 472 201 Wait 761 | . 37 16 37 37 . 14 5 496 82 37 . Move 5543 | 41 479 379 333 312 455 273 125 1099 1432 419 196 Hop . | . . . . . . . . . . . . Pick Up 50 | 6 6 9 7 . . . 3 4 13 2 . Fast Attach 30 | 6 2 1 1 . . . 2 . 13 5 . Attach 22 | . . . 2 . . . 2 8 8 2 . Detach . | . . . . . . . . . . . . Swap 34 | . 6 8 9 . . 1 1 5 4 . . Drop 55 | . 2 9 12 . . 1 3 13 14 1 . Fire 191 | . 38 13 6 3 . 24 4 23 70 5 5 Melee 34 | . . . . . . . . 10 23 1 . Ram 6 | . . . . . . . . . 6 . . Kick . | . . . . . . . . . . . . Crush . | . . . . . . . . . . . . Escape Stasis 14 | . . . . . . . . . 14 . . Rewire . | . . . . . . . . . . . . Trap . | . . . . . . . . . . . . Miscellaneous . | . . . . . . . . . . . . Route ------- -11/Scrapyard -10/Materials (discovered 4 exits: *Mat x2 / *Min x2) -10/Mines -9/Materials -9/Mines -9/Exiles -8/Mines (discovered 2 exits: [*Mat x2]) -8/Materials (discovered 2 exits: *Fac / Sto) -7/Factory (discovered 2 exits: *Fac x2) -6/Factory -6/Lower Caves -6/Lower Caves History --------- Turn | Location | Event 37 | -11/Scrapyard | Discovered new exit (range 15) 77 | -11/Scrapyard | Entered Materials 217 | -10/Materials | Discovered new exit (range 13) 309 | -10/Materials | Build established: Mutant 484 | -10/Materials | Discovered new exit (range 16) 594 | -10/Materials | Discovered new exit (range 16) 859 | -10/Materials | Discovered new exit (range 15) 904 | -10/Materials | Entered Mines 1188 | -10/Mines | Met a Derelict shopkeep closing up shop 1265 | -10/Mines | Met a Derelict who couldn't figure out how to use a Trap Extractor 1418 | -10/Mines | Assisted by bots powering up and referring to "LRC-V3" 1431 | -10/Mines | Learned location of Storage (-8) 1431 | -10/Mines | Discovered new exit (range 3) 1494 | -10/Mines | Assembled infested the area 1499 | -10/Mines | Assisted by a Guerilla fighting off Assembled 1542 | -10/Mines | Lost 4 allies 1559 | -10/Mines | Entered Materials 1559 | -9/Materials | Evolved 2 slots: Propulsion x1, Utility x1 1850 | -9/Materials | Discovered new exit (range 6) 2047 | -9/Materials | Entered Mines 2094 | -9/Mines | Met a Derelict bent on vengeance 2198 | -9/Mines | Learned Materials emergency access door positions 2381 | -9/Mines | Found a hidden stash of uninstalled traps 2480 | -9/Mines | Deemed a non-threat by the Exiles lab entrance 2482 | -9/Mines | Discovered new exit (range 5) 2487 | -9/Mines | Entered Exiles 2487 | -9/Exiles | Found Exiles lab abandoned 3044 | -9/Exiles | Discovered new exit (range 14) 3061 | -9/Exiles | Entered Mines 3163 | -8/Mines | Discovered new exit (range 8) 3480 | -8/Mines | Discovered new exit (range 4) 3493 | -8/Mines | Entered Materials 3493 | -8/Materials | Evolved 2 slots: Utility x2 3494 | -8/Materials | Identified exit to Storage 3661 | -8/Materials | Discovered new exit (range 14) 3679 | -8/Materials | Entered Factory 3679 | -7/Factory | Evolved 2 slots: Utility x2 3993 | -7/Factory | Build established: Hacker-Mutant 4578 | -7/Factory | Crushed by falling debris 4578 | -7/Factory | System corruption reached 10% 4609 | -7/Factory | Lost 5 parts (2n3u) 4630 | -7/Factory | Released all parts (7) 4779 | -7/Factory | Discovered new exit (range 8) 4834 | -7/Factory | Discovered new exit (range 4) 4860 | -7/Factory | Core integrity fell below 50% 4860 | -7/Factory | Entered another Factory area 4860 | -6/Factory | Evolved 2 slots: Power x1, Utility x1 4953 | -6/Factory | Build established: Mutant 5593 | -6/Factory | Garrison activated, responded to threat 5633 | -6/Factory | Core integrity fell below 50% 5741 | -6/Factory | Garrison activated, responded to threat 6059 | -6/Factory | Discovered new exit (range 8) 6082 | -6/Factory | Cargo convoy interrupted 6111 | -6/Factory | Core integrity fell below 20% 6111 | -6/Factory | Identified exit to Lower Caves 6112 | -6/Factory | Entered Lower Caves 6114 | -6/Lower Caves | Build established: Hacker-Mutant 6131 | -6/Lower Caves | Lost 5 parts (1p1n2u1w) 6152 | -6/Lower Caves | Learned location of Extension (-4) 6309 | -6/Lower Caves | Attracted the attention of an 0b10 base 6529 | -6/Lower Caves | Discovered new exit (range 6) 6533 | -6/Lower Caves | Identified exit to Lower Caves 6540 | -6/Lower Caves | Entered another Lower Caves area 6665 | -6/Lower Caves | Attracted the attention of an 0b10 base 6701 | -6/Lower Caves | Destroyed by S-27 Virus with Autogun Last Messages --------------- 06441_ Acquired Unknown Ballistic Cannon. 06460_ Acquired Com. Wheel. 06466_ System corrupted: IFF burst signal emitted. 06498_ System corrupted: Matter fused (-5). 06529_ EXIT=FOUND 06533_ Searching scrap... 06533_ Found Imp. Terrain Scanner. 06533_ Found 27 Matter. 06533_ EXIT=IDENTIFIED: LOWER CAVES 06535_ Acquired Imp. Terrain Scanner. 06537_ Acquired 15 matter. LOCATION=LOWER CAVES GOAL=ESCAPE 06545_ System corrupted: Energy discharge (-22). 06572_ 7R1RDQRFWS |AFZBOZYTIFI=|UBG OQZVM 06674_ Arm. Treads destroyed. 06690_ System corrupted: Matter fused (-5). 06695_ Imp. Signal Interpreter destroyed. 06697_ Hacking Suite destroyed. Map ----- +----------------------------------------------------+ | ?????????????????????????????????????????????????? | | ?????????????????????????????????????????????????? | | ?????????????????????????????????????????????????? | | ?????????????????????????????????????????????????? | | ?????????????????????????????????????????????????? | | ?????????????????????????????????????????????????? | | ?????????????????????????????????????????????????? | | ?????????????????????????????????????????????????? | | ??????????????????????????????????#?????????????#? | | ???????????????????????????????????????????#?????? | | ?????????????????????????????????????????????????? | | ?????????????????????????????????????????????????? | | ?????????????????????????????????????????????????# | | ????????????????????????????????????????????????## | | ???????????????????????#??????????????????????### | | ?????????????????????????????????????????????### | | ???????????????????????????????????#??????#### | | ???????????????????##?????????????????????# | | ???????????????????# ###??????#??????###??# | | ???????????????????# ######?????? #??# ### | | ???????????????????# ;####??# #??## ##?## | | ???????????????????# s ### ##??##????# | | ???????????? ???????# #????????? | | ????????????????????## s### ##??###### | | ????????????# ### #### #### | | ????????????# @;#??## # | | ????????????# ########" | | ????????????# ### #### ### ## # ########### | | ??????????????????????# ## # #"""??????# | | ??????????????????????# # # # ????# | | ?????????????????????? # ## # ""??# | | ????????????????????? ?## #?## $ # $ # | | ???????????????????? ??##??## # + !/ | | ???????????????????? ###?#?????# # # !%# | | ???????????????????##??????????# # "# | | ???????????????????????????????# / ?T "# | | ???????????????????????????????## #"""???"""# | | ????????????????????????????????## #######"### | | ?????????????????????????????????## | | ??????????????????????????????????# | | ??????????????????????????????????# ### #### | | ????????????????????????????????? ?# #??## # | | ??????????????????????????????? #???### # | | ?????????????????????????????? ## #?????### | | ???????????????????????????? ### #???????? | | ??????????????????????????? ## ###?# #???????? | | ??????????????????????????# ??# ????# #???????? | | ??????????????????????????##???# ????# ???????? | | ??????????????????????????????? ????# #???????? | | ??????????????????????????????? ????? #???????? | +----------------------------------------------------+ Best States ------------- Heat Dissipation 56 Energy Generation 45 Energy Capacity 280 Matter Stores 300 Matter Capacity 300 Sight Range 20 Robot Scan Range 15 Terrain Scan Range 16 Terrain Scan Density 10 Armor Coverage 150 Resistance: TH 20 Evasion (%) 63 Recoil Reduction 2 Offensive Hacking 30 Defensive Hacking 10 Item Schematics ----------------- Gravmag System | -7/Factory | Hacked Surge Thruster | -7/Factory | Hacked Imp. Signal Interpreter | -7/Factory | Hacked Robot Schematics ------------------ None Fabricated ------------ Nothing Alien Tech Used ----------------- None Achievements -------------- root@ Challenges ------------ None Game ------ Seed GreatActuatorMeganuke Manual? 0 Play Time 01:28:05 Cumulative 33.5 hours Start 2024.04.14 @ 22:53:06 End 2024.04.16 @ 21:28:29 Sessions 3 Manual Loads 0 Difficulty Rogue Special Mode None Game No. 21 Rogue 21 Adventurer 0 Explorer 0 Win Type - Total 0 Types 0/0/0/0/0/0/0/0/0 Lore% 22 Gallery% 27 Achievement% 21 Wizard Run 0 Options --------- Layout 1 ASCII 0 Keyboard 0 Movement Mouse Keybinds 0 Fullscreen 1 Font 48/Smallcaps Map View 50x35 Zoom Use 0% Tactical HUD 1 Map Filters NONE Filters NONE Steam 1 RUN: e352f664-d99c-43cf-9ff4-cee398c3fa09